[Event "RUS-ch Women Blitz 2019"]
[Site "Sochi"]
[Date "2019.10.17"]
[Round "10.1"]
[White "Belenkaya, Dina"]
[Black "Maltsevskaya, Aleksandra"]
[Result "0-1"]
[ECO "B24"]
[WhiteElo "2300"]
[BlackElo "2333"]
[Annotator "NA"]
[PlyCount "106"]
[EventDate "2019.10.17"]
[EventType "swiss"]
[EventCountry "RUS"]
[SourceTitle "playchess.com"]
[Source "ChessBase"]
[SourceQuality "1"]
[TimeControl "180+2"]

1. e4 {[%emt 0:00:00]} c5 {[%emt 0:00:00]} 2. Nc3 {[%emt 0:00:00]} Nc6 {[%emt 0:00:00]} 3. g3 {[%emt 0:00:01]} g6 {[%emt 0:00:02]} 4. Bg2 {[%emt 0:00:01]} Bg7 {[%emt 0:00:01]} 5. d3 {[%emt 0:00:08]} e6 {[%emt 0:00:01]} 6. Nf3 {[%emt 0:00:02]} Nge7 {[%emt 0:00:01]} 7. Bg5 {[%emt 0:00:06]} h6 {[%emt 0:00:02]} 8. Be3 {[%emt 0:00:01]} b6 {[%emt 0:00:01]} 9. O-O {[%emt 0:00:03]} O-O {[%emt 0:00:04]} 10. d4 {[%emt 0:00:03]} cxd4 {[%emt 0:00:11]} 11. Nxd4 {[%emt 0:00:01]} Bb7 {[%emt 0:00:00]} 12. Qd2 {[%emt 0:00:03]} Kh7 {[%emt 0:00:01]} 13. Ndb5 {[%emt 0:00:05]} d5 {[%emt 0:00:24]} 14. exd5 {[%emt 0:00:03]} exd5 {[%emt 0:00:01]} 15. Nxd5 {[%emt 0:00:05]} Ne5 {[%emt 0:00:04]} 16. Nf6+ {[%emt 0:00:36]} Bxf6 {[%emt 0:00:04]} 17. Bxb7 {[%emt 0:00:03]} Rb8 {[%emt 0:00:42]} 18. Bg2 {[%emt 0:00:13]} Nc4 {[%emt 0:00:02]} 19. Qxd8 {[%emt 0:00:09]} Rfxd8 {[%emt 0:00:01]} 20. Nxa7 {[%emt 0:00:09]} Bxb2 {[%emt 0:00:52]} 21. Rad1 {[%emt 0:00:09]} Nxe3 {[%emt 0:00:12]} 22. fxe3 {[%emt 0:00:02]} Kg7 {[%emt 0:00:01]} 23. c4 {[%emt 0:00:09]} Ba3 {[%emt 0:00:03]} 24. Bd5 {[%emt 0:00:18]} f6 {[%emt 0:00:42]} 25. e4 {[%emt 0:00:04]} Bc5+ {[%emt 0:00:01]} 26. Kg2 {[%emt 0:00:02]} Rd7 {[%emt 0:00:02]} 27. Nb5 {[%emt 0:00:08]} Rbd8 {[%emt 0:00:06]} 28. g4 {[%emt 0:00:03]} f5 {[%emt 0:00:02]} 29. gxf5 {[%emt 0:00:01]} gxf5 {[%emt 0:00:00]} 30. Rde1 {[%emt 0:00:45]} fxe4 {[%emt 0:00:01]} 31. Rf7+ {[%emt 0:00:10]} Kg6 {[%emt 0:00:01]} 32. Rxe4 {[%emt 0:00:13]} Rxd5 {[%emt 0:00:01]} 33. Rfxe7 {[%emt 0:00:03]} Rd2+ {[%emt 0:00:01]} 34. Kh3 {[%emt 0:00:04]} R8d3+ {[%emt 0:00:03]} 35. Kg4 {[%emt 0:00:02]} h5+ {[%emt 0:00:05]} 36. Kf4 {[%emt 0:00:02]} Rf2+ {[%emt 0:00:07]} 37. Ke5 {[%emt 0:00:01]} Bxe7 {[%emt 0:00:01]} 38. Ke6 {[%emt 0:00:01]} Bf6 {[%emt 0:00:02]} 39. Nc7 {[%emt 0:00:00]} Rff3 {[%emt 0:00:03]} 40. Nd5 {[%emt 0:00:01]} Bg5 {[%emt 0:00:05]} 41. a4 {[%emt 0:00:03]} Rd1 {[%emt 0:00:03]} 42. Nxb6 {[%emt 0:00:02]} Re3 {[%emt 0:00:01]} 43. Rxe3 {[%emt 0:00:01]} Bxe3 {[%emt 0:00:00]} 44. a5 {[%emt 0:00:02]} Ra1 {[%emt 0:00:03]} 45. Nd5 {[%emt 0:00:02]} Bc5 {[%emt 0:00:00]} 46. Nf4+ {[%emt 0:00:02]} Kg5 {[%emt 0:00:01]} 47. Nd3 {[%emt 0:00:01]} Be3 {[%emt 0:00:02]} 48. c5 {[%emt 0:00:01]} Rxa5 {[%emt 0:00:02]} 49. c6 {[%emt 0:00:01]} Bb6 {[%emt 0:00:05]} 50. Kd6 {[%emt 0:00:04]} Ra1 {[%emt 0:00:01]} 51. h3 {[%emt 0:00:01]} Rd1 {[%emt 0:00:03]} 52. c7 {[%emt 0:00:03]} Bxc7+ {[%emt 0:00:02]} 53. Kxc7 {[%emt 0:00:01]} Rxd3 0-1

[Event "RUS-ch Women Blitz 2019"]
[Site "Sochi"]
[Date "2019.10.17"]
[Round "10.2"]
[White "Bodnaruk, Anastasia"]
[Black "Tomilova, Elena"]
[Result "1/2-1/2"]
[ECO "C00"]
[WhiteElo "2419"]
[BlackElo "2345"]
[Annotator "NA"]
[PlyCount "156"]
[EventDate "2019.10.17"]
[EventType "swiss"]
[EventCountry "RUS"]
[SourceTitle "playchess.com"]
[Source "ChessBase"]
[SourceQuality "1"]
[TimeControl "180+2"]

1. e4 {[%emt 0:00:00]} e6 {[%emt 0:00:00]} 2. d3 {[%emt 0:00:00]} d5 {[%emt 0:00:00]} 3. Nd2 {[%emt 0:00:01]} Nf6 {[%emt 0:00:01]} 4. Ngf3 {[%emt 0:00:01]} b6 {[%emt 0:00:02]} 5. c3 {[%emt 0:00:09]} Bb7 {[%emt 0:00:02]} 6. Qc2 {[%emt 0:00:01]} c5 {[%emt 0:00:04]} 7. e5 {[%emt 0:00:23]} Nfd7 {[%emt 0:00:01]} 8. d4 {[%emt 0:00:01]} Nc6 {[%emt 0:00:02]} 9. a3 {[%emt 0:00:05]} a5 {[%emt 0:00:26]} 10. Be2 {[%emt 0:00:10]} Be7 {[%emt 0:00:03]} 11. O-O {[%emt 0:00:02]} O-O {[%emt 0:00:09]} 12. Rd1 {[%emt 0:00:02]} Qc7 {[%emt 0:00:05]} 13. Nf1 {[%emt 0:00:10]} c4 {[%emt 0:00:27]} 14. Ng3 {[%emt 0:00:17]} f5 {[%emt 0:00:10]} 15. exf6 {[%emt 0:00:07]} Nxf6 {[%emt 0:00:08]} 16. Ng5 {[%emt 0:00:09]} Qd7 {[%emt 0:00:11]} 17. Nh5 {[%emt 0:00:11]} g6 {[%emt 0:00:06]} 18. Nf4 {[%emt 0:00:02]} Nd8 {[%emt 0:00:05]} 19. Nxg6 {[%emt 0:00:12]} hxg6 {[%emt 0:00:06]} 20. Qxg6+ Kh8 21. Bd3 {[%emt 0:00:21]} Bd6 {[%emt 0:00:34]} 22. Qh6+ {[%emt 0:00:28]} Kg8 {[%emt 0:00:02]} 23. Be2 {[%emt 0:00:08]} Qg7 {[%emt 0:00:03]} 24. Qh4 {[%emt 0:00:01]} Bc6 {[%emt 0:00:14]} 25. Be3 {[%emt 0:00:11]} Be8 {[%emt 0:00:04]} 26. f4 {[%emt 0:00:01]} Bg6 {[%emt 0:00:04]} 27. Bf3 {[%emt 0:00:07]} b5 {[%emt 0:00:08]} 28. Re1 {[%emt 0:00:02]} Ne4 {[%emt 0:00:05]} 29. Bxe4 {[%emt 0:00:11]} Bxe4 {[%emt 0:00:08]} 30. Nxe4 {[%emt 0:00:01]} dxe4 31. Bd2 {[%emt 0:00:18]} Qh7 {[%emt 0:00:08]} 32. Qxh7+ {[%emt 0:00:00]} Kxh7 {[%emt 0:00:01]} 33. Rxe4 Rg8 {[%emt 0:00:06]} 34. Rae1 {[%emt 0:00:05]} Ra7 {[%emt 0:00:01]} 35. g3 {[%emt 0:00:02]} Kg7 {[%emt 0:00:03]} 36. Kg2 {[%emt 0:00:01]} Kf6 {[%emt 0:00:02]} 37. d5 {[%emt 0:00:06]} Re7 {[%emt 0:00:06]} 38. dxe6 {[%emt 0:00:05]} Rxe6 {[%emt 0:00:02]} 39. Rd4 {[%emt 0:00:02]} Bc5 {[%emt 0:00:04]} 40. Rd5 {[%emt 0:00:01]} Nb7 {[%emt 0:00:11]} 41. Ree5 {[%emt 0:00:03]} Rxe5 {[%emt 0:00:02]} 42. Rxe5 {[%emt 0:00:01]} Rd8 {[%emt 0:00:01]} 43. Be1 {[%emt 0:00:00]} Rd1 44. Kf1 Rb1 {[%emt 0:00:03]} 45. Re2 {[%emt 0:00:02]} Nd6 {[%emt 0:00:01]} 46. g4 {[%emt 0:00:01]} b4 {[%emt 0:00:04]} 47. axb4 {[%emt 0:00:01]} axb4 {[%emt 0:00:01]} 48. cxb4 Bd4 49. h4 {[%emt 0:00:04]} Rxb2 {[%emt 0:00:02]} 50. g5+ {[%emt 0:00:04]} Kf5 {[%emt 0:00:01]} 51. h5 {[%emt 0:00:05]} Rxe2 {[%emt 0:00:03]} 52. Kxe2 {[%emt 0:00:01]} Kxf4 {[%emt 0:00:00]} 53. g6 {[%emt 0:00:01]} Kg5 {[%emt 0:00:02]} 54. Bf2 {[%emt 0:00:04]} Bg7 {[%emt 0:00:06]} 55. Bc5 {[%emt 0:00:02]} Nb5 {[%emt 0:00:01]} 56. Kd2 {[%emt 0:00:04]} Kxh5 {[%emt 0:00:02]} 57. Kc2 {[%emt 0:00:01]} Kxg6 {[%emt 0:00:01]} 58. Be3 {[%emt 0:00:00]} Kf5 {[%emt 0:00:01]} 59. Bg1 {[%emt 0:00:02]} Ke4 {[%emt 0:00:00]} 60. Bf2 {[%emt 0:00:00]} Kd5 {[%emt 0:00:01]} 61. Bg1 {[%emt 0:00:02]} Bf8 {[%emt 0:00:02]} 62. Bf2 {[%emt 0:00:02]} Bxb4 {[%emt 0:00:01]} 63. Bh4 {[%emt 0:00:01]} Bd6 {[%emt 0:00:01]} 64. Bf6 {[%emt 0:00:01]} Be5 {[%emt 0:00:01]} 65. Bd8 {[%emt 0:00:01]} Nd4+ {[%emt 0:00:07]} 66. Kc1 {[%emt 0:00:02]} Nb5 {[%emt 0:00:04]} 67. Kc2 {[%emt 0:00:01]} c3 {[%emt 0:00:01]} 68. Ba5 {[%emt 0:00:01]} Kc4 {[%emt 0:00:01]} 69. Bxc3 {[%emt 0:00:01]} Nxc3 {[%emt 0:00:02]} 70. Kd2 {[%emt 0:00:04]} Bf4+ {[%emt 0:00:06]} 71. Ke1 {[%emt 0:00:01]} Kd3 {[%emt 0:00:01]} 72. Kf2 {[%emt 0:00:01]} Ke4 {[%emt 0:00:01]} 73. Kg2 {[%emt 0:00:02]} Ne2 {[%emt 0:00:03]} 74. Kf2 {[%emt 0:00:01]} Nd4 {[%emt 0:00:01]} 75. Kg2 {[%emt 0:00:00]} Ke3 {[%emt 0:00:03]} 76. Kf1 {[%emt 0:00:04]} Kf3 {[%emt 0:00:04]} 77. Kg1 {[%emt 0:00:01]} Bg3 {[%emt 0:00:05]} 78. Kh1 {[%emt 0:00:03]} Ne6 {[%emt 0:00:06]} 1/2-1/2

[Event "RUS-ch Women Blitz 2019"]
[Site "Sochi"]
[Date "2019.10.17"]
[Round "10.3"]
[White "Styazhkina, Anna"]
[Black "Pogonina, Natalija"]
[Result "0-1"]
[ECO "C50"]
[WhiteElo "2280"]
[BlackElo "2479"]
[Annotator "ChessBase"]
[PlyCount "62"]
[EventDate "2019.10.17"]
[EventType "swiss"]
[EventCountry "RUS"]
[SourceTitle "playchess.com"]
[Source "ChessBase"]
[SourceQuality "1"]
[TimeControl "180+2"]

1. e4 {[%emt 0:00:00]} e5 {[%emt 0:00:00]} 2. Nf3 {[%emt 0:00:04]} Nc6 {[%emt 0:00:01]} 3. Bc4 {[%emt 0:00:02]} Bc5 {[%emt 0:00:02]} 4. Nc3 {[%emt 0:00:02]} Nf6 {[%emt 0:00:02]} 5. d3 {[%emt 0:00:02]} h6 {[%emt 0:00:03]} 6. a3 {[%emt 0:00:04]} a6 {[%emt 0:00:04]} 7. Be3 {[%emt 0:00:06]} Bxe3 {[%emt 0:00:06]} 8. fxe3 {[%emt 0:00:01]} O-O {[%emt 0:00:04]} 9. O-O {[%emt 0:00:04]} d6 {[%emt 0:00:03]} 10. Qe1 {[%emt 0:00:11]} Be6 {[%emt 0:00:03]} 11. Nd5 {[%emt 0:00:05]} Bxd5 {[%emt 0:00:09]} 12. exd5 {[%emt 0:00:02]} Ne7 {[%emt 0:00:02]} 13. e4 {[%emt 0:00:07]} Ng6 {[%emt 0:00:04]} 14. Kh1 {[%emt 0:00:55]} Qe7 {[%emt 0:00:10]} 15. Bb3 {[%emt 0:00:06]} Nh7 {[%emt 0:00:16]} 16. c3 {[%emt 0:00:07]} Ng5 {[%emt 0:00:03]} 17. Nh4 {[%emt 0:00:20]} Nxh4 {[%emt 0:00:12]} 18. Qxh4 {[%emt 0:00:02]} Qd7 {[%emt 0:00:10]} 19. d4 {[%emt 0:00:20]} Qb5 {[%emt 0:00:12]} 20. Ba2 {[%emt 0:00:23]} Qxb2 {[%emt 0:00:04]} 21. dxe5 {[%emt 0:00:02]} dxe5 {[%emt 0:00:06]} 22. c4 {[%emt 0:00:26]} Qd4 {[%emt 0:00:05]} 23. Rae1 {[%emt 0:00:04]} a5 {[%emt 0:00:07]} 24. Qg4 {[%emt 0:00:07]} f5 {[%emt 0:00:15]} 25. Rxf5 {[%emt 0:00:03]} Rxf5 {[%emt 0:00:02]} 26. Qxf5 {[%emt 0:00:03]} Qd2 {[%emt 0:00:07]} 27. Qf1 {[%emt 0:00:03]} Qxa2 {[%emt 0:00:03]} 28. c5 {[%emt 0:00:02]} Rf8 {[%emt 0:00:02]} 29. Qd3 {[%emt 0:00:01]} Qf2 {[%emt 0:00:06]} 30. Rg1 {[%emt 0:00:02]} Qf4 {[%emt 0:00:06]} 31. Re1 {[%emt 0:00:02]} Nxe4 {[%emt 0:00:05]} 0-1

[Event "RUS-ch Women Blitz 2019"]
[Site "Sochi"]
[Date "2019.10.17"]
[Round "10.4"]
[White "Ambartsumova, Karina"]
[Black "Semenova, Elena"]
[Result "1/2-1/2"]
[ECO "A18"]
[WhiteElo "2341"]
[BlackElo "2282"]
[Annotator "NA"]
[PlyCount "89"]
[EventDate "2019.10.17"]
[EventType "swiss"]
[EventCountry "RUS"]
[SourceTitle "playchess.com"]
[Source "ChessBase"]
[SourceQuality "1"]
[TimeControl "180+2"]

1. c4 {[%emt 0:00:00]} Nf6 {[%emt 0:00:00]} 2. Nc3 {[%emt 0:00:01]} e6 {[%emt 0:00:00]} 3. e4 {[%emt 0:00:01]} d5 {[%emt 0:00:00]} 4. e5 {[%emt 0:00:02]} d4 {[%emt 0:00:07]} 5. exf6 {[%emt 0:00:04]} dxc3 {[%emt 0:00:02]} 6. bxc3 {[%emt 0:00:01]} Qxf6 {[%emt 0:00:02]} 7. Nf3 {[%emt 0:00:01]} b6 {[%emt 0:00:04]} 8. d4 {[%emt 0:00:04]} h6 {[%emt 0:00:05]} 9. Bd3 {[%emt 0:00:13]} Bb7 {[%emt 0:00:01]} 10. O-O {[%emt 0:00:14]} Nd7 {[%emt 0:00:10]} 11. Re1 {[%emt 0:00:10]} Bd6 {[%emt 0:00:15]} 12. Rb1 {[%emt 0:00:23]} O-O {[%emt 0:00:42]} 13. c5 {[%emt 0:00:29]} Bxf3 {[%emt 0:00:13]} 14. Qxf3 {[%emt 0:00:15]} Qxf3 {[%emt 0:00:05]} 15. gxf3 {[%emt 0:00:01]} bxc5 {[%emt 0:00:01]} 16. Be4 {[%emt 0:00:23]} Rab8 {[%emt 0:00:01]} 17. Be3 {[%emt 0:00:13]} cxd4 {[%emt 0:00:21]} 18. cxd4 {[%emt 0:00:04]} Nf6 {[%emt 0:00:13]} 19. Bc6 {[%emt 0:00:06]} Nd5 {[%emt 0:00:06]} 20. Bxd5 {[%emt 0:00:17]} exd5 {[%emt 0:00:01]} 21. h3 {[%emt 0:00:14]} Rb6 {[%emt 0:00:01]} 22. Rbc1 {[%emt 0:00:13]} Rb2 {[%emt 0:00:07]} 23. Ra1 {[%emt 0:00:04]} Rfb8 {[%emt 0:00:03]} 24. Kg2 {[%emt 0:00:06]} Rc2 {[%emt 0:00:01]} 25. Rec1 {[%emt 0:00:05]} Re2 {[%emt 0:00:08]} 26. Re1 {[%emt 0:00:03]} Rxe1 {[%emt 0:00:06]} 27. Rxe1 {[%emt 0:00:01]} Rb2 {[%emt 0:00:01]} 28. Ra1 {[%emt 0:00:01]} a5 {[%emt 0:00:05]} 29. a4 {[%emt 0:00:01]} Bb4 {[%emt 0:00:10]} 30. f4 {[%emt 0:00:03]} f5 {[%emt 0:00:14]} 31. Rc1 {[%emt 0:00:04]} Ra2 {[%emt 0:00:04]} 32. Rxc7 {[%emt 0:00:01]} Rxa4 {[%emt 0:00:01]} 33. Rd7 {[%emt 0:00:01]} Ra2 {[%emt 0:00:11]} 34. Rxd5 {[%emt 0:00:01]} a4 35. Rb5 Be7 {[%emt 0:00:11]} 36. d5 {[%emt 0:00:04]} a3 {[%emt 0:00:04]} 37. Rb7 {[%emt 0:00:01]} Bf6 {[%emt 0:00:03]} 38. Ra7 {[%emt 0:00:01]} Ra1 {[%emt 0:00:02]} 39. d6 {[%emt 0:00:01]} a2 {[%emt 0:00:05]} 40. d7 {[%emt 0:00:01]} Rd1 {[%emt 0:00:04]} 41. Rxa2 {[%emt 0:00:03]} Rxd7 {[%emt 0:00:01]} 42. Ra8+ {[%emt 0:00:02]} Kf7 {[%emt 0:00:01]} 43. Ra4 {[%emt 0:00:01]} Ke6 {[%emt 0:00:03]} 44. Ra6+ {[%emt 0:00:01]} Rd6 {[%emt 0:00:01]} 45. Ra4 {[%emt 0:00:01] Ke5} 1/2-1/2

[Event "RUS-ch Women Blitz 2019"]
[Site "Sochi"]
[Date "2019.10.17"]
[Round "10.6"]
[White "Lysenko, Margarita"]
[Black "Garifullina, Leya"]
[Result "0-1"]
[ECO "E20"]
[WhiteElo "2243"]
[BlackElo "2330"]
[Annotator "NA"]
[PlyCount "106"]
[EventDate "2019.10.17"]
[EventType "swiss"]
[EventCountry "RUS"]
[SourceTitle "playchess.com"]
[Source "ChessBase"]
[SourceQuality "1"]
[TimeControl "180+2"]

1. d4 {[%emt 0:00:00]} Nf6 {[%emt 0:00:00]} 2. c4 {[%emt 0:00:03]} e6 {[%emt 0:00:00]} 3. Nc3 {[%emt 0:00:01]} Bb4 {[%emt 0:00:00]} 4. f3 {[%emt 0:00:02]} d5 {[%emt 0:00:02]} 5. a3 {[%emt 0:00:02]} Bxc3+ {[%emt 0:00:01]} 6. bxc3 {[%emt 0:00:01]} O-O {[%emt 0:00:02]} 7. cxd5 {[%emt 0:00:01]} Nxd5 {[%emt 0:00:04]} 8. e4 {[%emt 0:00:47]} Ne7 {[%emt 0:00:23]} 9. Bd3 {[%emt 0:00:07]} c5 {[%emt 0:00:01]} 10. Ne2 {[%emt 0:00:02]} cxd4 {[%emt 0:00:03]} 11. cxd4 {[%emt 0:00:02]} Nbc6 {[%emt 0:00:01]} 12. Be3 {[%emt 0:00:17]} Qa5+ {[%emt 0:00:07]} 13. Bd2 {[%emt 0:00:25]} Qd8 {[%emt 0:00:02]} 14. Bc3 {[%emt 0:00:09]} b6 {[%emt 0:00:04]} 15. O-O {[%emt 0:00:07]} Bb7 {[%emt 0:00:03]} 16. Rc1 {[%emt 0:00:14]} Rc8 {[%emt 0:00:01]} 17. Bb1 {[%emt 0:00:06]} Ng6 {[%emt 0:00:45]} 18. Qd2 {[%emt 0:00:19]} Qd7 {[%emt 0:00:10]} 19. Rfd1 {[%emt 0:00:07]} Rfd8 {[%emt 0:00:05]} 20. d5 {[%emt 0:00:15]} exd5 {[%emt 0:00:03]} 21. exd5 {[%emt 0:00:01]} Nce7 {[%emt 0:00:02]} 22. d6 {[%emt 0:00:13]} Nd5 {[%emt 0:00:12]} 23. Bb2 {[%emt 0:00:11]} Rxc1 {[%emt 0:00:02]} 24. Rxc1 {[%emt 0:00:01]} Qxd6 {[%emt 0:00:10]} 25. Ng3 {[%emt 0:00:02]} Nde7 {[%emt 0:00:21]} 26. Qc3 {[%emt 0:00:02]} f6 {[%emt 0:00:02]} 27. Qb3+ {[%emt 0:00:10]} Bd5 {[%emt 0:00:03]} 28. Qa4 {[%emt 0:00:01]} a5 {[%emt 0:00:07]} 29. Nf5 {[%emt 0:00:02]} Nxf5 {[%emt 0:00:02]} 30. Bxf5 {[%emt 0:00:01]} Bf7 {[%emt 0:00:04]} 31. Be4 {[%emt 0:00:05]} Qd2 {[%emt 0:00:03]} 32. Qc2 {[%emt 0:00:03]} Qe3+ {[%emt 0:00:03]} 33. Qf2 {[%emt 0:00:01]} Qxf2+ {[%emt 0:00:02]} 34. Kxf2 {[%emt 0:00:01]} Rd2+ {[%emt 0:00:01]} 35. Kg3 {[%emt 0:00:04]} Rxb2 {[%emt 0:00:01]} 36. Rc8+ {[%emt 0:00:01]} Nf8 {[%emt 0:00:01]} 37. a4 {[%emt 0:00:02]} Rb4 {[%emt 0:00:02]} 38. Bc6 {[%emt 0:00:01]} h6 {[%emt 0:00:05]} 39. h4 {[%emt 0:00:03]} Bb3 {[%emt 0:00:02]} 40. Rd8 {[%emt 0:00:04]} Kf7 {[%emt 0:00:03]} 41. Rb8 {[%emt 0:00:01]} Kg8 {[%emt 0:00:04]} 42. Ra8 {[%emt 0:00:02]} Rd4 {[%emt 0:00:03]} 43. Rb8 {[%emt 0:00:03]} Bxa4 {[%emt 0:00:01]} 44. Be4 {[%emt 0:00:02]} b5 {[%emt 0:00:09]} 45. Ra8 {[%emt 0:00:01]} b4 {[%emt 0:00:03]} 46. Rxa5 {[%emt 0:00:02]} Bd7 {[%emt 0:00:01]} 47. Ra7 {[%emt 0:00:02]} Be6 {[%emt 0:00:01]} 48. Rb7 {[%emt 0:00:03]} b3 {[%emt 0:00:01]} 49. Rb8 {[%emt 0:00:01]} f5 {[%emt 0:00:07]} 50. Bc6 {[%emt 0:00:03]} Rc4 {[%emt 0:00:04]} 51. Be8 {[%emt 0:00:02]} Rc8 {[%emt 0:00:01]} 52. Rxc8 Bxc8 {[%emt 0:00:01]} 53. Ba4 {[%emt 0:00:03]} Be6 {[%emt 0:00:03]} 0-1

[Event "RUS-ch Women Blitz 2019"]
[Site "Sochi"]
[Date "2019.10.17"]
[Round "10.7"]
[White "Voit, Daria"]
[Black "Afonasieva, Anna"]
[Result "1/2-1/2"]
[ECO "D11"]
[WhiteElo "2336"]
[BlackElo "2312"]
[Annotator "NA"]
[PlyCount "62"]
[EventDate "2019.10.17"]
[EventType "swiss"]
[EventCountry "RUS"]
[SourceTitle "playchess.com"]
[Source "ChessBase"]
[SourceQuality "1"]
[TimeControl "180+2"]

1. d4 {[%emt 0:00:00]} d5 {[%emt 0:00:00]} 2. c4 {[%emt 0:00:00]} c6 {[%emt 0:00:00]} 3. Nf3 {[%emt 0:00:02]} Nf6 {[%emt 0:00:00]} 4. e3 {[%emt 0:00:01]} e6 {[%emt 0:00:02]} 5. Bd3 {[%emt 0:00:02]} Nbd7 {[%emt 0:00:06]} 6. O-O {[%emt 0:00:02]} dxc4 {[%emt 0:00:04]} 7. Bxc4 {[%emt 0:00:01]} b5 {[%emt 0:00:01]} 8. Be2 {[%emt 0:00:09]} Bb7 {[%emt 0:00:08]} 9. Qc2 {[%emt 0:00:02]} Bd6 {[%emt 0:00:10]} 10. e4 {[%emt 0:00:11]} e5 {[%emt 0:00:08]} 11. Rd1 {[%emt 0:00:02]} Qe7 {[%emt 0:00:12]} 12. dxe5 {[%emt 0:00:20]} Nxe5 {[%emt 0:00:03]} 13. Nd4 {[%emt 0:00:20]} g6 {[%emt 0:00:42]} 14. f4 {[%emt 0:00:14]} O-O {[%emt 0:00:30]} 15. fxe5 {[%emt 0:00:36]} Bxe5 {[%emt 0:00:05]} 16. Nf3 {[%emt 0:00:16]} c5 {[%emt 0:00:02]} 17. Nc3 {[%emt 0:00:07]} Bxc3 {[%emt 0:00:18]} 18. bxc3 {[%emt 0:00:17]} Bxe4 {[%emt 0:00:04]} 19. Qb2 {[%emt 0:00:01]} a6 {[%emt 0:00:00]} 20. Bg5 {[%emt 0:00:06]} Qe6 {[%emt 0:00:06]} 21. Bxf6 {[%emt 0:00:11]} Qxf6 {[%emt 0:00:01]} 22. Qd2 {[%emt 0:00:06]} Rad8 {[%emt 0:00:06]} 23. Qe3 {[%emt 0:00:01]} Qc6 {[%emt 0:00:28]} 24. Ne5 {[%emt 0:00:07]} Qb7 {[%emt 0:00:01]} 25. Bf3 {[%emt 0:00:18]} Bxf3 {[%emt 0:00:01]} 26. Nxf3 {[%emt 0:00:02]} c4 {[%emt 0:00:05]} 27. Rd4 {[%emt 0:00:02]} Rde8 {[%emt 0:00:02]} 28. Qf2 {[%emt 0:00:03]} Qc6 {[%emt 0:00:06]} 29. Re1 {[%emt 0:00:03]} a5 {[%emt 0:00:09]} 30. h3 {[%emt 0:00:07]} Qc5 {[%emt 0:00:00]} 31. Rxe8 {[%emt 0:00:05]} Rxe8 {[%emt 0:00:02]} 1/2-1/2

[Event "RUS-ch Women Blitz 2019"]
[Site "Sochi"]
[Date "2019.10.17"]
[Round "10.8"]
[White "Charochkina, Daria"]
[Black "Sukhareva, Evgeniya"]
[Result "0-1"]
[ECO "B06"]
[WhiteElo "2355"]
[BlackElo "2122"]
[Annotator "NA"]
[PlyCount "70"]
[EventDate "2019.10.17"]
[EventType "swiss"]
[EventCountry "RUS"]
[SourceTitle "playchess.com"]
[Source "ChessBase"]
[SourceQuality "1"]
[TimeControl "180+2"]

1. d4 {[%emt 0:00:00]} g6 {[%emt 0:00:00]} 2. e4 {[%emt 0:00:03]} Bg7 {[%emt 0:00:00]} 3. Nc3 {[%emt 0:00:01]} d6 {[%emt 0:00:00]} 4. Be3 {[%emt 0:00:01]} c6 {[%emt 0:00:01]} 5. f4 {[%emt 0:00:03]} b5 {[%emt 0:00:03]} 6. a3 {[%emt 0:00:01]} e6 {[%emt 0:00:03]} 7. Nf3 {[%emt 0:00:03]} Ne7 {[%emt 0:00:00]} 8. Bd3 {[%emt 0:00:02]} a6 {[%emt 0:00:01]} 9. O-O {[%emt 0:00:02]} Qc7 {[%emt 0:00:01]} 10. Qe1 {[%emt 0:00:03]} c5 {[%emt 0:00:03]} 11. dxc5 {[%emt 0:00:02]} dxc5 {[%emt 0:00:01]} 12. e5 {[%emt 0:00:05]} Nf5 {[%emt 0:00:11]} 13. Bf2 {[%emt 0:00:06]} h5 {[%emt 0:00:10]} 14. Ng5 {[%emt 0:00:06]} Nd7 {[%emt 0:00:04]} 15. Bxf5 {[%emt 0:00:11]} gxf5 {[%emt 0:00:02]} 16. Rd1 {[%emt 0:00:01]} Bb7 {[%emt 0:00:09]} 17. Bh4 {[%emt 0:00:02]} Bf8 {[%emt 0:00:44]} 18. Qg3 {[%emt 0:00:10]} Qc6 {[%emt 0:00:17]} 19. Rd2 {[%emt 0:00:10]} Rg8 {[%emt 0:00:02]} 20. Rfd1 {[%emt 0:00:02]} O-O-O {[%emt 0:00:22]} 21. Qf2 {[%emt 0:00:23]} Be7 {[%emt 0:00:12]} 22. Ne2 {[%emt 0:00:06]} f6 {[%emt 0:00:16]} 23. exf6 {[%emt 0:00:13]} Nxf6 {[%emt 0:00:01]} 24. Ng3 {[%emt 0:00:17]} c4 {[%emt 0:00:24]} 25. Kh1 {[%emt 0:00:02]} Ng4 {[%emt 0:00:18]} 26. Qe2 {[%emt 0:00:09]} Kb8 {[%emt 0:00:19]} 27. h3 {[%emt 0:00:01]} Nf6 {[%emt 0:00:03]} 28. Nxe6 {[%emt 0:00:15]} Rde8 {[%emt 0:00:02]} 29. Qe5+ {[%emt 0:00:11]} Ka7 {[%emt 0:00:03]} 30. Qe3+ {[%emt 0:00:20]} Kb8 {[%emt 0:00:01]} 31. Nd4 {[%emt 0:00:06]} Qc7 {[%emt 0:00:04]} 32. Ndxf5 {[%emt 0:00:07]} Bc5 {[%emt 0:00:03]} 33. Qc3 {[%emt 0:00:05]} Ne4 {[%emt 0:00:06]} 34. Nxe4 {[%emt 0:00:02]} Bxe4 {[%emt 0:00:02]} 35. Ng3 Qb7 0-1